[Event "Titled Tuesday Blitz April 25 Early 2023"]
[White "Djordjevic, Vuk"]
[Black "Bortnyk, Olexandr"]
[WhiteFideId "902098"]
[BlackFideId "14120828"]
[WhiteElo "2452"]
[BlackElo "2734"]
[Result "0-1"]
[Round "08"]
[TimeControl "180+2"]
[Date "2023.04.25"]
[WhiteClock "0:00:01"]
[BlackClock "0:00:17"]

1. d4 {[%clk 0:03:00]}  d6 {[%clk 0:02:53]} 2. Bg5 {[%clk 0:03:00]}  Nd7 {[%clk 0:02:41]} 3. Nf3 {[%clk 0:02:59]}  Ngf6 {[%clk 0:02:41]} 4. h3 {[%clk 0:02:52]}  e5 {[%clk 0:02:39]} 5. e3 {[%clk 0:02:52]}  Be7 {[%clk 0:02:37]} 6. c4 {[%clk 0:02:52]}  O-O {[%clk 0:02:35]} 7. Nc3 {[%clk 0:02:52]}  c6 {[%clk 0:02:36]} 8. Be2 {[%clk 0:02:51]}  h6 {[%clk 0:02:32]} 9. Bh4 {[%clk 0:02:50]}  Qc7 {[%clk 0:02:32]} 10. O-O {[%clk 0:02:48]}  Re8 {[%clk 0:02:32]} 11. b4 {[%clk 0:02:47]}  Nf8 {[%clk 0:02:31]} 12. b5 {[%clk 0:02:41]}  Ng6 {[%clk 0:02:27]} 13. Bg3 {[%clk 0:02:41]}  Bf5 {[%clk 0:02:26]} 14. Bd3 {[%clk 0:02:14]}  e4 {[%clk 0:02:17]} 15. Bc2 {[%clk 0:02:13]}  Qa5 {[%clk 0:02:16]} 16. Qd2 {[%clk 0:01:55]}  exf3 {[%clk 0:02:10]} 17. Bxf5 {[%clk 0:01:55]}  fxg2 {[%clk 0:02:09]} 18. Kxg2 {[%clk 0:01:50]}  cxb5 {[%clk 0:02:08]} 19. cxb5 {[%clk 0:01:47]}  Nd5 {[%clk 0:02:06]} 20. Ne4 {[%clk 0:01:22]}  Qxb5 {[%clk 0:02:05]} 21. Kh2 {[%clk 0:00:48]}  Rad8 {[%clk 0:01:51]} 22. Rab1 {[%clk 0:00:44]}  Qa6 {[%clk 0:01:48]} 23. Rg1 {[%clk 0:00:36]}  Nf8 {[%clk 0:01:32]} 24. Nc3 {[%clk 0:00:31]}  Nxc3 {[%clk 0:01:31]} 25. Qxc3 {[%clk 0:00:32]}  b6 {[%clk 0:01:28]} 26. Bd3 {[%clk 0:00:31]}  Qb7 {[%clk 0:01:23]} 27. Bb5 {[%clk 0:00:31]}  Rc8 {[%clk 0:01:23]} 28. Qd3 {[%clk 0:00:29]}  Ne6 {[%clk 0:01:18]} 29. Bxe8 {[%clk 0:00:28]}  Ng5 {[%clk 0:01:16]} 30. e4 {[%clk 0:00:19]}  Rxe8 {[%clk 0:01:14]} 31. d5 {[%clk 0:00:16]}  Bf6 {[%clk 0:01:12]} 32. Rbf1 {[%clk 0:00:16]}  Qd7 {[%clk 0:01:05]} 33. Bf4 {[%clk 0:00:14]}  Nxe4 {[%clk 0:00:59]} 34. Bxh6 {[%clk 0:00:13]}  Re5 {[%clk 0:00:52]} 35. Bf4 {[%clk 0:00:12]}  Rh5 {[%clk 0:00:50]} 36. Rg2 {[%clk 0:00:07]}  Qf5 {[%clk 0:00:48]} 37. Bc1 {[%clk 0:00:03]}  Nd2 {[%clk 0:00:40]} 38. Qxf5 {[%clk 0:00:02]}  Nxf1+ {[%clk 0:00:39]} 39. Kg1 {[%clk 0:00:02]}  Rxf5 {[%clk 0:00:40]} 40. Kxf1 {[%clk 0:00:03]}  Rxd5 {[%clk 0:00:41]} 41. Ke2 {[%clk 0:00:03]}  Rc5 {[%clk 0:00:40]} 42. Kd1 {[%clk 0:00:03]}  Rd5+ {[%clk 0:00:37]} 43. Kc2 {[%clk 0:00:03]}  Ra5 {[%clk 0:00:37]} 44. a3 {[%clk 0:00:03]}  Rc5+ {[%clk 0:00:38]} 45. Kd1 {[%clk 0:00:03]}  g6 {[%clk 0:00:37]} 46. Bf4 {[%clk 0:00:02]}  Rd5+ {[%clk 0:00:37]} 47. Kc2 {[%clk 0:00:02]}  Rc5+ {[%clk 0:00:36]} 48. Kd2 {[%clk 0:00:02]}  Rc4 {[%clk 0:00:36]} 49. Be3 {[%clk 0:00:02]}  Ra4 {[%clk 0:00:36]} 50. Rg4 {[%clk 0:00:01]}  Rxa3 {[%clk 0:00:36]} 51. Rc4 {[%clk 0:00:02]}  d5 {[%clk 0:00:35]} 52. Rc6 {[%clk 0:00:02]}  Be5 {[%clk 0:00:34]} 53. Rc8+ {[%clk 0:00:02]}  Kg7 {[%clk 0:00:35]} 54. Rd8 {[%clk 0:00:03]}  d4 {[%clk 0:00:34]} 55. Bg5 {[%clk 0:00:03]}  Rxh3 {[%clk 0:00:34]} 56. Be7 {[%clk 0:00:03]}  Rb3 {[%clk 0:00:25]} 57. Ra8 {[%clk 0:00:02]}  a5 {[%clk 0:00:25]} 58. Bd8 {[%clk 0:00:02]}  d3 {[%clk 0:00:22]} 59. Bg5 {[%clk 0:00:02]}  b5 {[%clk 0:00:19]} 60. Kd1 {[%clk 0:00:01]}  Bc3 {[%clk 0:00:17]} 61. Be3 {[%clk 0:00:01]}  Rb1+ {[%clk 0:00:17]} 0-1


[Site "https://www.chess.com"]

[Event "Titled Tuesday Blitz April 25 Early 2023"]
[White "Esipenko, Andrey"]
[Black "Gunina, Valentina"]
[WhiteFideId "24175439"]
[BlackFideId "4167570"]
[WhiteElo "2615"]
[BlackElo "2352"]
[Result "1-0"]
[Round "08"]
[TimeControl "180+2"]
[Date "2023.04.25"]
[WhiteClock "0:01:08"]
[BlackClock "0:00:13"]

1. e4 {[%clk 0:02:59]}  c6 {[%clk 0:03:00]} 2. d4 {[%clk 0:02:58]}  d5 {[%clk 0:02:59]} 3. f3 {[%clk 0:02:58]}  e6 {[%clk 0:02:56]} 4. Nc3 {[%clk 0:02:58]}  Bb4 {[%clk 0:02:43]} 5. Bd3 {[%clk 0:02:58]}  dxe4 {[%clk 0:02:32]} 6. fxe4 {[%clk 0:02:58]}  Qxd4 {[%clk 0:02:20]} 7. Nf3 {[%clk 0:02:59]}  Qb6 {[%clk 0:02:20]} 8. Qe2 {[%clk 0:02:47]}  Ne7 {[%clk 0:02:19]} 9. a3 {[%clk 0:02:41]}  Bxc3+ {[%clk 0:02:15]} 10. bxc3 {[%clk 0:02:41]}  Qc5 {[%clk 0:02:16]} 11. c4 {[%clk 0:02:39]}  Nd7 {[%clk 0:02:08]} 12. Be3 {[%clk 0:02:33]}  Qa5+ {[%clk 0:02:08]} 13. Bd2 {[%clk 0:02:33]}  Qc7 {[%clk 0:02:09]} 14. e5 {[%clk 0:02:29]}  Ng6 {[%clk 0:02:08]} 15. Bxg6 {[%clk 0:02:16]}  hxg6 {[%clk 0:02:08]} 16. O-O {[%clk 0:02:17]}  c5 {[%clk 0:01:57]} 17. Rae1 {[%clk 0:02:02]}  b6 {[%clk 0:01:23]} 18. Ng5 {[%clk 0:01:58]}  Rf8 {[%clk 0:01:23]} 19. Nxf7 {[%clk 0:01:56]}  Rxf7 {[%clk 0:01:04]} 20. Rxf7 {[%clk 0:01:55]}  Kxf7 {[%clk 0:01:05]} 21. Qf3+ {[%clk 0:01:56]}  Nf6 {[%clk 0:00:42]} 22. Qxa8 {[%clk 0:01:39]}  Bb7 {[%clk 0:00:42]} 23. Qh8 {[%clk 0:01:38]}  Qc6 {[%clk 0:00:36]} 24. Qh3 {[%clk 0:01:37]}  Ne4 {[%clk 0:00:35]} 25. Rf1+ {[%clk 0:01:35]}  Kg8 {[%clk 0:00:35]} 26. Be3 {[%clk 0:01:28]}  Qa4 {[%clk 0:00:20]} 27. Qxe6+ {[%clk 0:01:27]}  Kh7 {[%clk 0:00:21]} 28. Qh3+ {[%clk 0:01:18]}  Kg8 {[%clk 0:00:21]} 29. e6 {[%clk 0:01:19]}  Bc8 {[%clk 0:00:17]} 30. Qg4 {[%clk 0:01:10]}  Nf6 {[%clk 0:00:15]} 31. Rxf6 {[%clk 0:01:08]}  gxf6 {[%clk 0:00:13]} 32. Qxg6+ {[%clk 0:01:08]} 1-0


[Site "https://www.chess.com"]

[Event "Titled Tuesday Blitz April 25 Early 2023"]
[White "Mitrabha, Guha"]
[Black "Shuvalova, Polina"]
[WhiteFideId "5057000"]
[BlackFideId "24171760"]
[WhiteElo "2507"]
[BlackElo "2281"]
[Result "0-1"]
[Round "08"]
[TimeControl "180+2"]
[Date "2023.04.25"]
[WhiteClock "0:01:50"]
[BlackClock "0:01:05"]

1. Nf3 {[%clk 0:03:00]}  Nf6 {[%clk 0:02:59]} 2. d4 {[%clk 0:03:00]}  d6 {[%clk 0:02:59]} 3. g3 {[%clk 0:03:01]}  g6 {[%clk 0:02:56]} 4. Bg2 {[%clk 0:03:01]}  Bg7 {[%clk 0:02:57]} 5. O-O {[%clk 0:03:02]}  O-O {[%clk 0:02:57]} 6. c4 {[%clk 0:03:02]}  Nc6 {[%clk 0:02:54]} 7. Nc3 {[%clk 0:03:03]}  e5 {[%clk 0:02:53]} 8. dxe5 {[%clk 0:03:00]}  dxe5 {[%clk 0:02:52]} 9. Bg5 {[%clk 0:03:00]}  h6 {[%clk 0:02:51]} 10. Qxd8 {[%clk 0:03:00]}  Rxd8 {[%clk 0:02:50]} 11. Bxf6 {[%clk 0:03:00]}  Bxf6 {[%clk 0:02:51]} 12. Nd5 {[%clk 0:03:00]}  Kg7 {[%clk 0:02:52]} 13. Nxc7 {[%clk 0:03:01]}  Rb8 {[%clk 0:02:51]} 14. e4 {[%clk 0:03:02]}  Be7 {[%clk 0:02:44]} 15. Rfd1 {[%clk 0:03:00]}  Be6 {[%clk 0:02:44]} 16. Nd5 {[%clk 0:02:59]}  Bc5 {[%clk 0:02:42]} 17. Ne1 {[%clk 0:02:57]}  a5 {[%clk 0:02:39]} 18. a3 {[%clk 0:02:55]}  Bd4 {[%clk 0:02:37]} 19. Rab1 {[%clk 0:02:54]}  b5 {[%clk 0:02:26]} 20. cxb5 {[%clk 0:02:49]}  Rxb5 {[%clk 0:02:25]} 21. Nd3 {[%clk 0:02:49]}  a4 {[%clk 0:02:06]} 22. Rbc1 {[%clk 0:02:42]}  Na5 {[%clk 0:01:55]} 23. Nc7 {[%clk 0:02:42]}  Rbb8 {[%clk 0:01:41]} 24. Nxe6+ {[%clk 0:02:41]}  fxe6 {[%clk 0:01:41]} 25. Rc7+ {[%clk 0:02:41]}  Kf6 {[%clk 0:01:39]} 26. h4 {[%clk 0:02:31]}  Rbc8 {[%clk 0:01:32]} 27. Rb7 {[%clk 0:02:27]}  Nxb7 {[%clk 0:01:28]} 28. Kh2 {[%clk 0:02:08]}  Nc5 {[%clk 0:01:26]} 29. Nb4 {[%clk 0:02:08]}  h5 {[%clk 0:01:22]} 30. Kh3 {[%clk 0:02:07]}  Bxb2 {[%clk 0:01:19]} 31. Rf1 {[%clk 0:02:00]}  Bxa3 {[%clk 0:01:17]} 32. Nc2 {[%clk 0:02:00]}  Bb2 {[%clk 0:01:17]} 33. f4 {[%clk 0:02:00]}  exf4 {[%clk 0:01:15]} 34. Rxf4+ {[%clk 0:02:01]}  Kg7 {[%clk 0:01:15]} 35. e5 {[%clk 0:01:52]}  Nd3 {[%clk 0:01:11]} 36. Rxa4 {[%clk 0:01:50]}  Rxc2 {[%clk 0:01:10]} 37. Ra7+ {[%clk 0:01:50]}  Kh6 {[%clk 0:01:05]} 0-1


[Site "https://www.chess.com"]

[Event "Titled Tuesday Blitz April 25 Early 2023"]
[White "Wieczorek, Oskar"]
[Black "Janik, Igor"]
[WhiteFideId "1133950"]
[BlackFideId "1159259"]
[WhiteElo "2418"]
[BlackElo "2484"]
[Result "1-0"]
[Round "08"]
[TimeControl "180+2"]
[Date "2023.04.25"]
[WhiteClock "0:00:03"]
[BlackClock "0:00:13"]

1. e4 {[%clk 0:02:56]}  c5 {[%clk 0:02:57]} 2. Nf3 {[%clk 0:02:19]}  Nc6 {[%clk 0:02:56]} 3. b4 {[%clk 0:02:18]}  cxb4 {[%clk 0:02:47]} 4. d4 {[%clk 0:02:17]}  d5 {[%clk 0:02:47]} 5. exd5 {[%clk 0:02:18]}  Qxd5 {[%clk 0:02:46]} 6. c4 {[%clk 0:02:18]}  bxc3 {[%clk 0:02:15]} 7. Nxc3 {[%clk 0:02:18]}  Qa5 {[%clk 0:02:15]} 8. Rb1 {[%clk 0:02:19]}  e6 {[%clk 0:02:13]} 9. Bd2 {[%clk 0:02:16]}  Bb4 {[%clk 0:02:10]} 10. Rxb4 {[%clk 0:01:53]}  Qxb4 {[%clk 0:01:59]} 11. d5 {[%clk 0:01:50]}  exd5 {[%clk 0:01:56]} 12. Nxd5 {[%clk 0:01:51]}  Qe4+ {[%clk 0:01:56]} 13. Be3 {[%clk 0:01:41]}  Kf8 {[%clk 0:01:36]} 14. Ng5 {[%clk 0:01:40]}  Qe5 {[%clk 0:01:32]} 15. f4 {[%clk 0:01:19]}  Qd6 {[%clk 0:01:29]} 16. Ne4 {[%clk 0:00:57]}  Qd8 {[%clk 0:01:26]} 17. Bc4 {[%clk 0:00:33]}  Be6 {[%clk 0:01:14]} 18. O-O {[%clk 0:00:31]}  Nge7 {[%clk 0:01:13]} 19. Bc5 {[%clk 0:00:24]}  Bxd5 {[%clk 0:00:35]} 20. Bxd5 {[%clk 0:00:24]}  Kg8 {[%clk 0:00:35]} 21. Bb3 {[%clk 0:00:03]}  b6 {[%clk 0:00:22]} 22. Ba3 {[%clk 0:00:03]}  Nf5 {[%clk 0:00:20]} 23. Ng5 {[%clk 0:00:02]}  Nh6 {[%clk 0:00:16]} 24. Qf3 {[%clk 0:00:02]}  Nd4 {[%clk 0:00:16]} 25. Qe4 {[%clk 0:00:01]}  Nxb3 {[%clk 0:00:16]} 26. axb3 {[%clk 0:00:02]}  Qe8 {[%clk 0:00:15]} 27. Qf3 {[%clk 0:00:02]}  f6 {[%clk 0:00:14]} 28. Qd5+ {[%clk 0:00:02]}  Nf7 {[%clk 0:00:13]} 29. Nxf7 {[%clk 0:00:03]}  h5 {[%clk 0:00:13]} 30. Ng5+ {[%clk 0:00:03]} 1-0


[Site "https://www.chess.com"]

[Event "Titled Tuesday Blitz April 25 Early 2023"]
[White "Hua, Lefong"]
[Black "Narayanan, Srinath"]
[WhiteFideId "2602253"]
[BlackFideId "5018420"]
[WhiteElo "2668"]
[BlackElo "2438"]
[Result "1-0"]
[Round "08"]
[TimeControl "180+2"]
[Date "2023.04.25"]
[WhiteClock "0:00:11"]
[BlackClock "0:00:03"]

1. d4 {[%clk 0:03:00]}  d5 {[%clk 0:02:55]} 2. c4 {[%clk 0:03:01]}  dxc4 {[%clk 0:02:56]} 3. Nf3 {[%clk 0:03:01]}  Nf6 {[%clk 0:02:55]} 4. e3 {[%clk 0:03:01]}  e6 {[%clk 0:02:55]} 5. Bxc4 {[%clk 0:03:01]}  c5 {[%clk 0:02:56]} 6. O-O {[%clk 0:02:59]}  a6 {[%clk 0:02:57]} 7. Bb3 {[%clk 0:02:59]}  b5 {[%clk 0:02:54]} 8. a4 {[%clk 0:02:57]}  Bb7 {[%clk 0:02:50]} 9. axb5 {[%clk 0:02:54]}  axb5 {[%clk 0:02:51]} 10. Rxa8 {[%clk 0:02:52]}  Bxa8 {[%clk 0:02:52]} 11. dxc5 {[%clk 0:02:43]}  Qxd1 {[%clk 0:02:51]} 12. Rxd1 {[%clk 0:02:43]}  Bxc5 {[%clk 0:02:52]} 13. Na3 {[%clk 0:02:38]}  b4 {[%clk 0:02:39]} 14. Ba4+ {[%clk 0:02:33]}  Ke7 {[%clk 0:02:39]} 15. Nc4 {[%clk 0:02:16]}  Rc8 {[%clk 0:02:34]} 16. Nfe5 {[%clk 0:02:12]}  Bd5 {[%clk 0:02:23]} 17. Bb5 {[%clk 0:01:56]}  Ne4 {[%clk 0:02:19]} 18. f3 {[%clk 0:01:49]}  Nd6 {[%clk 0:02:19]} 19. Nxd6 {[%clk 0:01:43]}  Bxd6 {[%clk 0:02:20]} 20. Nd3 {[%clk 0:01:42]}  f5 {[%clk 0:02:19]} 21. Bd2 {[%clk 0:01:31]}  Rc2 {[%clk 0:02:09]} 22. Bxb4 {[%clk 0:01:18]}  Rc7 {[%clk 0:01:30]} 23. Bxd6+ {[%clk 0:01:05]}  Kxd6 {[%clk 0:01:31]} 24. Nf4 {[%clk 0:01:04]}  Rb7 {[%clk 0:01:20]} 25. Bc4 {[%clk 0:00:57]}  Rxb2 {[%clk 0:01:00]} 26. Bxd5 {[%clk 0:00:57]}  exd5 {[%clk 0:00:58]} 27. Rxd5+ {[%clk 0:00:58]}  Ke7 {[%clk 0:00:58]} 28. Rxf5 {[%clk 0:00:58]}  Nd7 {[%clk 0:00:59]} 29. h4 {[%clk 0:00:52]}  g6 {[%clk 0:00:54]} 30. Ra5 {[%clk 0:00:50]}  Rd2 {[%clk 0:00:51]} 31. e4 {[%clk 0:00:46]}  Rc2 {[%clk 0:00:32]} 32. Ra7 {[%clk 0:00:44]}  Kd6 {[%clk 0:00:32]} 33. Ra6+ {[%clk 0:00:39]}  Ke5 {[%clk 0:00:30]} 34. Nd5 {[%clk 0:00:39]}  Nc5 {[%clk 0:00:29]} 35. Ra7 {[%clk 0:00:38]}  Nd3 {[%clk 0:00:26]} 36. Re7+ {[%clk 0:00:30]}  Kd4 {[%clk 0:00:24]} 37. Rxh7 {[%clk 0:00:30]}  Ne1 {[%clk 0:00:25]} 38. Nf4 {[%clk 0:00:26]}  Ke3 {[%clk 0:00:21]} 39. Rf7 {[%clk 0:00:22]}  Rc1 {[%clk 0:00:21]} 40. Kh2 {[%clk 0:00:21]}  Kf2 {[%clk 0:00:22]} 41. Nh3+ {[%clk 0:00:20]}  Kf1 {[%clk 0:00:22]} 42. Kg3 {[%clk 0:00:18]}  Nxg2 {[%clk 0:00:16]} 43. Nf4 {[%clk 0:00:18]}  Ne1 {[%clk 0:00:08]} 44. Nxg6 {[%clk 0:00:18]}  Ke2 {[%clk 0:00:09]} 45. h5 {[%clk 0:00:16]}  Rc3 {[%clk 0:00:08]} 46. Nh4 {[%clk 0:00:15]}  Nd3 {[%clk 0:00:05]} 47. h6 {[%clk 0:00:14]}  Rc1 {[%clk 0:00:05]} 48. h7 {[%clk 0:00:12]}  Rg1+ {[%clk 0:00:05]} 49. Kh2 {[%clk 0:00:12]}  Kf1 {[%clk 0:00:03]} 50. h8=Q {[%clk 0:00:11]}  Nf2 {[%clk 0:00:03]} 51. Qa1+ {[%clk 0:00:11]} 1-0


[Site "https://www.chess.com"]

[Event "Titled Tuesday Blitz April 25 Early 2023"]
[White "Rozen, Eytan"]
[Black "Martinez Ramirez, Lennis"]
[WhiteFideId "2816750"]
[BlackFideId "3509079"]
[WhiteElo "2451"]
[BlackElo "2410"]
[Result "1-0"]
[Round "08"]
[TimeControl "180+2"]
[Date "2023.04.25"]
[WhiteClock "0:00:03"]
[BlackClock "0:00:02"]

1. e4 {[%clk 0:03:00]}  c5 {[%clk 0:02:57]} 2. Nf3 {[%clk 0:03:01]}  Nc6 {[%clk 0:02:57]} 3. Nc3 {[%clk 0:02:52]}  d6 {[%clk 0:02:56]} 4. d4 {[%clk 0:02:50]}  cxd4 {[%clk 0:02:57]} 5. Nxd4 {[%clk 0:02:51]}  Nf6 {[%clk 0:02:58]} 6. Bc4 {[%clk 0:02:48]}  e6 {[%clk 0:02:55]} 7. Be3 {[%clk 0:02:46]}  Be7 {[%clk 0:02:54]} 8. Qe2 {[%clk 0:02:43]}  Na5 {[%clk 0:02:54]} 9. Bd3 {[%clk 0:02:36]}  O-O {[%clk 0:02:52]} 10. f4 {[%clk 0:02:32]}  e5 {[%clk 0:02:35]} 11. Nf5 {[%clk 0:02:18]}  Bxf5 {[%clk 0:02:34]} 12. exf5 {[%clk 0:02:17]}  exf4 {[%clk 0:02:22]} 13. Bxf4 {[%clk 0:02:18]}  d5 {[%clk 0:02:23]} 14. O-O {[%clk 0:02:15]}  Re8 {[%clk 0:02:20]} 15. Kh1 {[%clk 0:02:03]}  Rc8 {[%clk 0:02:13]} 16. Qf3 {[%clk 0:01:58]}  Nc4 {[%clk 0:02:09]} 17. Bxc4 {[%clk 0:01:49]}  Rxc4 {[%clk 0:02:09]} 18. Rad1 {[%clk 0:01:47]}  d4 {[%clk 0:01:39]} 19. Qxb7 {[%clk 0:01:38]}  Qb6 {[%clk 0:01:32]} 20. Qxb6 {[%clk 0:01:32]}  axb6 {[%clk 0:01:33]} 21. Nb5 {[%clk 0:01:32]}  Rxc2 {[%clk 0:01:29]} 22. Rxd4 {[%clk 0:00:59]}  Rxb2 {[%clk 0:01:28]} 23. Nd6 {[%clk 0:00:46]}  Ra8 {[%clk 0:01:18]} 24. a4 {[%clk 0:00:42]}  Ra2 {[%clk 0:01:08]} 25. Rc1 {[%clk 0:00:31]}  h5 {[%clk 0:01:01]} 26. h3 {[%clk 0:00:25]}  R2xa4 {[%clk 0:01:00]} 27. Rxa4 {[%clk 0:00:24]}  Rxa4 {[%clk 0:00:58]} 28. Rc8+ {[%clk 0:00:25]}  Bf8 {[%clk 0:00:50]} 29. Be3 {[%clk 0:00:18]}  Ra1+ {[%clk 0:00:33]} 30. Kh2 {[%clk 0:00:18]}  Nd7 {[%clk 0:00:05]} 31. Rd8 {[%clk 0:00:14]}  Ra7 {[%clk 0:00:05]} 32. Nb5 {[%clk 0:00:12]}  Rb7 {[%clk 0:00:05]} 33. Bf4 {[%clk 0:00:09]}  Kh7 {[%clk 0:00:04]} 34. g4 {[%clk 0:00:05]}  hxg4 {[%clk 0:00:03]} 35. hxg4 {[%clk 0:00:06]}  Bc5 {[%clk 0:00:03]} 36. g5 {[%clk 0:00:05]}  g6 {[%clk 0:00:02]} 37. f6 {[%clk 0:00:04]}  Nf8 {[%clk 0:00:02]} 38. Bd6 {[%clk 0:00:03]}  Ne6 {[%clk 0:00:02]} 39. Re8 {[%clk 0:00:02]}  Nxg5 {[%clk 0:00:02]} 40. Re7 {[%clk 0:00:03]} 1-0


[Site "https://www.chess.com"]

[Event "Titled Tuesday Blitz April 25 Early 2023"]
[White "Grigoriants, Sergey"]
[Black "Gontcharov, Vladislav"]
[WhiteFideId "4130804"]
[BlackFideId "4123492"]
[WhiteElo "2502"]
[BlackElo "2420"]
[Result "1-0"]
[Round "08"]
[TimeControl "180+2"]
[Date "2023.04.25"]
[WhiteClock "0:00:10"]
[BlackClock "0:00:01"]

1. d4 {[%clk 0:02:55]}  Nf6 {[%clk 0:02:58]} 2. c4 {[%clk 0:02:55]}  c5 {[%clk 0:02:58]} 3. d5 {[%clk 0:02:55]}  e6 {[%clk 0:02:58]} 4. Nc3 {[%clk 0:02:54]}  exd5 {[%clk 0:02:59]} 5. cxd5 {[%clk 0:02:55]}  d6 {[%clk 0:02:59]} 6. Nf3 {[%clk 0:02:56]}  g6 {[%clk 0:02:59]} 7. h3 {[%clk 0:02:56]}  Bg7 {[%clk 0:02:59]} 8. Bf4 {[%clk 0:02:57]}  O-O {[%clk 0:02:58]} 9. e3 {[%clk 0:02:58]}  a6 {[%clk 0:02:57]} 10. a4 {[%clk 0:02:58]}  Qe7 {[%clk 0:02:56]} 11. Nd2 {[%clk 0:02:55]}  Ne8 {[%clk 0:02:52]} 12. Be2 {[%clk 0:02:53]}  Nd7 {[%clk 0:02:53]} 13. O-O {[%clk 0:02:53]}  Rb8 {[%clk 0:02:52]} 14. Rb1 {[%clk 0:02:52]}  f5 {[%clk 0:02:49]} 15. Qc2 {[%clk 0:02:49]}  Ne5 {[%clk 0:02:45]} 16. b4 {[%clk 0:02:45]}  Bd7 {[%clk 0:02:26]} 17. bxc5 {[%clk 0:02:43]}  dxc5 {[%clk 0:02:26]} 18. Bxa6 {[%clk 0:02:29]}  Nd6 {[%clk 0:02:22]} 19. Bb5 {[%clk 0:02:29]}  g5 {[%clk 0:02:18]} 20. Bxe5 {[%clk 0:02:20]}  Bxe5 {[%clk 0:02:18]} 21. Bxd7 {[%clk 0:02:20]}  Qxd7 {[%clk 0:02:17]} 22. Nb5 {[%clk 0:02:21]}  Nf7 {[%clk 0:02:04]} 23. Rbd1 {[%clk 0:02:10]}  Qxd5 {[%clk 0:01:35]} 24. Nb3 {[%clk 0:02:08]}  Qc6 {[%clk 0:01:20]} 25. Qxc5 {[%clk 0:02:08]}  Ra8 {[%clk 0:01:08]} 26. N5d4 {[%clk 0:01:12]}  Qf6 {[%clk 0:00:57]} 27. Qb5 {[%clk 0:00:59]}  b6 {[%clk 0:00:57]} 28. Rc1 {[%clk 0:00:52]}  Rfc8 {[%clk 0:00:48]} 29. Rc6 {[%clk 0:00:46]}  Rxc6 {[%clk 0:00:45]} 30. Nxc6 {[%clk 0:00:47]}  Kg7 {[%clk 0:00:39]} 31. Nbd4 {[%clk 0:00:44]}  Bxd4 {[%clk 0:00:38]} 32. Nxd4 {[%clk 0:00:44]}  Ra5 {[%clk 0:00:30]} 33. Qd7 {[%clk 0:00:40]}  f4 {[%clk 0:00:17]} 34. e4 {[%clk 0:00:36]}  Kg6 {[%clk 0:00:14]} 35. Nf5 {[%clk 0:00:30]}  Re5 {[%clk 0:00:12]} 36. f3 {[%clk 0:00:28]}  Qe6 {[%clk 0:00:09]} 37. Qb7 {[%clk 0:00:23]}  Rc5 {[%clk 0:00:05]} 38. Rd1 {[%clk 0:00:23]}  Kf6 {[%clk 0:00:03]} 39. Qb8 {[%clk 0:00:22]}  Qc6 {[%clk 0:00:01]} 40. Kh2 {[%clk 0:00:14]}  Rc2 {[%clk 0:00:01]} 41. Nd4 {[%clk 0:00:10]} 1-0


[Site "https://www.chess.com"]

[Event "Titled Tuesday Blitz April 25 Early 2023"]
[White "Timofeev, Artyom"]
[Black "Aaditya Dhingra"]
[WhiteFideId "4140419"]
[BlackFideId "25678191"]
[WhiteElo "2586"]
[BlackElo "2083"]
[Result "0-1"]
[Round "08"]
[TimeControl "180+2"]
[Date "2023.04.25"]
[WhiteClock "0:00:01"]
[BlackClock "0:00:05"]

1. c4 {[%clk 0:03:00]}  e6 {[%clk 0:02:58]} 2. d4 {[%clk 0:02:56]}  d5 {[%clk 0:02:57]} 3. Nc3 {[%clk 0:02:56]}  c6 {[%clk 0:02:57]} 4. e4 {[%clk 0:02:55]}  dxe4 {[%clk 0:02:57]} 5. Nxe4 {[%clk 0:02:55]}  Bb4+ {[%clk 0:02:57]} 6. Bd2 {[%clk 0:02:54]}  Be7 {[%clk 0:02:57]} 7. Nf3 {[%clk 0:02:51]}  Nf6 {[%clk 0:02:56]} 8. Bd3 {[%clk 0:02:49]}  Nxe4 {[%clk 0:02:55]} 9. Bxe4 {[%clk 0:02:49]}  Nd7 {[%clk 0:02:55]} 10. Qc2 {[%clk 0:02:45]}  Nf6 {[%clk 0:02:55]} 11. Bd3 {[%clk 0:02:45]}  b6 {[%clk 0:02:52]} 12. O-O-O {[%clk 0:02:43]}  Qc7 {[%clk 0:02:51]} 13. Ne5 {[%clk 0:02:37]}  Bb7 {[%clk 0:02:47]} 14. Bf4 {[%clk 0:02:36]}  Nh5 {[%clk 0:02:40]} 15. Be3 {[%clk 0:02:35]}  f6 {[%clk 0:02:30]} 16. Nf3 {[%clk 0:02:19]}  O-O-O {[%clk 0:02:25]} 17. Rhe1 {[%clk 0:02:16]}  Kb8 {[%clk 0:02:15]} 18. g3 {[%clk 0:02:06]}  c5 {[%clk 0:02:13]} 19. Be2 {[%clk 0:01:47]}  g6 {[%clk 0:02:09]} 20. Qc3 {[%clk 0:01:34]}  Ka8 {[%clk 0:01:49]} 21. dxc5 {[%clk 0:01:27]}  bxc5 {[%clk 0:01:45]} 22. Nd2 {[%clk 0:00:57]}  Ng7 {[%clk 0:01:42]} 23. Bf3 {[%clk 0:00:56]}  Nf5 {[%clk 0:01:33]} 24. Bxb7+ {[%clk 0:00:54]}  Qxb7 {[%clk 0:01:32]} 25. g4 {[%clk 0:00:54]}  Nd4 {[%clk 0:01:30]} 26. f4 {[%clk 0:00:40]}  h5 {[%clk 0:01:26]} 27. g5 {[%clk 0:00:35]}  fxg5 {[%clk 0:01:25]} 28. fxg5 {[%clk 0:00:35]}  Rhf8 {[%clk 0:01:23]} 29. Kb1 {[%clk 0:00:34]}  e5 {[%clk 0:01:16]} 30. a3 {[%clk 0:00:33]}  Rf5 {[%clk 0:01:10]} 31. h4 {[%clk 0:00:32]}  Rb8 {[%clk 0:01:05]} 32. Ka2 {[%clk 0:00:31]}  Bd8 {[%clk 0:01:04]} 33. Rb1 {[%clk 0:00:30]}  Qc6 {[%clk 0:00:54]} 34. Qd3 {[%clk 0:00:29]}  Nf3 {[%clk 0:00:43]} 35. Nxf3 {[%clk 0:00:27]}  e4 {[%clk 0:00:43]} 36. Ne5 {[%clk 0:00:22]}  Rxe5 {[%clk 0:00:40]} 37. Qc2 {[%clk 0:00:22]}  Re6 {[%clk 0:00:34]} 38. Rbd1 {[%clk 0:00:22]}  Bc7 {[%clk 0:00:32]} 39. Bd2 {[%clk 0:00:21]}  Be5 {[%clk 0:00:25]} 40. Bc3 {[%clk 0:00:21]}  Bg3 {[%clk 0:00:25]} 41. Re2 {[%clk 0:00:19]}  Bxh4 {[%clk 0:00:24]} 42. Rd5 {[%clk 0:00:19]}  Rbe8 {[%clk 0:00:21]} 43. Qd1 {[%clk 0:00:15]}  Bg3 {[%clk 0:00:20]} 44. Qg1 {[%clk 0:00:13]}  h4 {[%clk 0:00:19]} 45. Rxc5 {[%clk 0:00:12]}  Qb7 {[%clk 0:00:18]} 46. Rb5 {[%clk 0:00:12]}  Qc6 {[%clk 0:00:18]} 47. Qd4 {[%clk 0:00:12]}  Bc7 {[%clk 0:00:16]} 48. Rc5 {[%clk 0:00:11]}  Qb7 {[%clk 0:00:15]} 49. Qd5 {[%clk 0:00:11]}  Bb6 {[%clk 0:00:15]} 50. Rb5 {[%clk 0:00:10]}  Qxd5 {[%clk 0:00:14]} 51. cxd5 {[%clk 0:00:10]}  Rd6 {[%clk 0:00:14]} 52. Bb4 {[%clk 0:00:09]}  Rd7 {[%clk 0:00:14]} 53. d6 {[%clk 0:00:10]}  h3 {[%clk 0:00:12]} 54. a4 {[%clk 0:00:10]}  Bg1 {[%clk 0:00:09]} 55. Bc5 {[%clk 0:00:02]}  h2 {[%clk 0:00:08]} 56. Re1 {[%clk 0:00:01]}  h1=Q {[%clk 0:00:07]} 57. Rxg1 {[%clk 0:00:01]}  Qh7 {[%clk 0:00:06]} 58. Rc1 {[%clk 0:00:01]}  Rc8 {[%clk 0:00:05]} 0-1


[Site "https://www.chess.com"]